bitfinex/quotes_BTCUSD_20240718
["timestamp","ask_amount","ask_price","bid_price","bid_amount"]
[1721263504812,2.06099853,64494.0,64493.0,0.148313]
[1721263505071,2.14069212,64494.0,64493.0,0.147313]
[1721263505208,2.09770768,64494.0,64493.0,0.147313]
[1721263505414,2.26605725,64494.0,64493.0,0.148313]
[1721263505626,2.11170768,64494.0,64493.0,0.148313]
[1721263506292,2.21170768,64494.0,64493.0,0.148313]
[1721263506650,2.21077743,64494.0,64493.0,0.148313]
[1721263507364,2.35026925,64494.0,64493.0,0.148313]
[1721263508386,2.21077743,64494.0,64493.0,0.148313]
[1721263508770,2.27437743,64494.0,64493.0,0.148313]
[1721263509338,2.56821882,64494.0,64493.0,0.148313]
[1721263509541,2.56821882,64494.0,64477.0,0.0652]
[1721263509542,0.825457,64478.0,64477.0,0.0652]
[1721263509749,1.08564,64478.0,64477.0,0.0652]
[1721263509898,1.15091148,64478.0,64477.0,0.06516]
[1721263510498,1.15091148,64478.0,64477.0,0.06512]
[1721263510708,1.19740123,64478.0,64477.0,0.06512]
[1721263510920,1.22065766,64478.0,64477.0,0.06512]
[1721263511139,1.19740118,64478.0,64477.0,0.06512]
[1721263511455,1.19740118,64478.0,64477.0,0.06508]
[1721263511656,1.16491148,64478.0,64477.0,0.06508]
[1721263511885,1.22064964,64478.0,64477.0,0.065]
[1721263512089,1.17491148,64478.0,64477.0,0.065]
[1721263512288,1.17491148,64478.0,64477.0,0.06496]
[1721263512569,1.12264,64478.0,64477.0,0.06492]
[1721263512979,1.13564,64478.0,64477.0,0.06492]
[1721263513169,0.027,64478.0,64477.0,0.14362]
[1721263513306,0.182091,64478.0,64477.0,0.14362]
[1721263513508,0.492274,64478.0,64477.0,0.14362]
[1721263514770,0.182091,64478.0,64477.0,0.14362]
[1721263514903,0.168091,64478.0,64477.0,0.14362]
[1721263515107,0.013,64478.0,64477.0,0.14362]
[1721263515593,0.005,64478.0,64477.0,0.29078174]
[1721263515795,0.155051,64495.0,64489.0,0.216265]
[1721263515986,0.06971423,64500.0,64489.0,0.216265]
[1721263515987,0.46387871,64494.0,64489.0,1.07090674]
[1721263516196,0.00083,64494.0,64492.0,0.155057]
[1721263516393,0.00083,64494.0,64493.0,0.1407]
[1721263516959,0.00083,64494.0,64493.0,0.295755]
[1721263517174,0.00083,64494.0,64493.0,0.605866]
[1721263517728,0.00011922,64494.0,64493.0,0.605866]
[1721263518440,0.00111922,64494.0,64493.0,0.605866]
[1721263519202,0.00011922,64494.0,64493.0,0.607866]
[1721263519399,0.00011922,64494.0,64493.0,0.605866]
[1721263519776,0.00011922,64494.0,64493.0,0.608866]
[1721263519981,0.00011922,64494.0,64493.0,0.607866]
[1721263520180,0.00011922,64494.0,64493.0,0.1427]
[1721263520383,0.46527822,64494.0,64493.0,0.1427]
[1721263520584,0.77538422,64494.0,64493.0,0.1427]
[1721263521748,0.77538422,64494.0,64493.0,0.1407]
[1721263522010,0.46527822,64494.0,64493.0,0.1407]
[1721263522185,0.00411922,64494.0,64493.0,0.1407]
[1721263522568,0.00711922,64494.0,64493.0,0.1407]
[1721263523193,0.00011922,64494.0,64493.0,0.1407]
[1721263523446,0.00011922,64494.0,64493.0,0.1417]
[1721263523447,0.00311922,64494.0,64493.0,0.1417]
[1721263523619,0.00011922,64494.0,64493.0,0.606866]
[1721263523822,0.00011922,64494.0,64493.0,0.296755]
[1721263524028,0.00011922,64494.0,64493.0,0.1417]
[1721263524599,0.00011922,64494.0,64493.0,0.296755]
[1721263525302,0.00011922,64494.0,64493.0,0.300755]
[1721263525909,0.00011922,64494.0,64493.0,0.610866]
[1721263526509,0.00011922,64494.0,64493.0,0.609866]
[1721263526734,0.00211922,64494.0,64493.0,0.609866]
[1721263526937,0.00211922,64494.0,64493.0,0.605866]
[1721263527137,0.00211922,64494.0,64493.0,0.295755]
[1721263527438,0.00211922,64494.0,64493.0,0.605866]
[1721263528437,0.00311922,64494.0,64493.0,0.610866]
[1721263528613,0.00111922,64494.0,64493.0,0.610866]
[1721263528813,0.00011922,64494.0,64493.0,0.606866]
[1721263529425,0.00111922,64494.0,64493.0,0.295755]
[1721263529598,0.00011922,64494.0,64493.0,0.295755]
[1721263530028,0.00311922,64494.0,64493.0,0.295755]
[1721263530305,0.15717222,64494.0,64493.0,0.1407]
[1721263531202,0.15517222,64494.0,64493.0,0.1407]
[1721263531619,0.15517222,64494.0,64487.0,0.310139]
[1721263531620,0.00311922,64494.0,64488.0,0.0618]
[1721263531834,0.155065,64489.0,64488.0,0.0618]
[1721263532504,0.465195,64489.0,64488.0,0.0618]
[1721263533203,0.465195,64489.0,64488.0,0.0658]
[1721263534671,0.465195,64489.0,64488.0,0.0668]
[1721263535526,0.465195,64489.0,64488.0,0.0618]
[1721263535673,0.465195,64489.0,64488.0,0.0648]
[1721263535930,0.465195,64489.0,64488.0,0.0658]
[1721263536263,0.465195,64489.0,64488.0,0.0648]
[1721263538011,0.465195,64489.0,64488.0,0.0618]
[1721263538219,0.465195,64489.0,64488.0,0.0658]
[1721263538663,0.465195,64489.0,64488.0,0.0648]
[1721263539071,0.465195,64489.0,64488.0,0.0618]
[1721263539413,0.465195,64489.0,64488.0,0.0658]
[1721263540015,0.465195,64489.0,64488.0,0.0628]
[1721263540758,1.085455,64489.0,64488.0,0.001]
[1721263540958,1.108455,64489.0,64488.0,0.001]
[1721263541115,1.26283674,64489.0,64488.0,0.001]
[1721263541317,0.775325,64489.0,64488.0,0.001]
[1721263541515,0.155065,64489.0,64488.0,0.0641]
[1721263541719,0.155065,64489.0,64488.0,0.0671]
[1721263541916,0.155065,64489.0,64488.0,0.0631]
[1721263542200,0.155061,64491.0,64488.0,0.0631]
[1721263542401,0.027,64489.0,64488.0,0.0641]
[1721263542955,0.013,64489.0,64488.0,0.839437]
[1721263543085,0.005,64489.0,64488.0,0.923337]
[1721263543494,0.005,64489.0,64488.0,0.924337]
[1721263543894,0.005,64489.0,64488.0,0.614202]
[1721263545509,0.00011922,64494.0,64491.0,0.155059]
[1721263546796,0.00411922,64494.0,64491.0,0.155059]
[1721263547550,0.00811922,64494.0,64491.0,0.155059]
[1721263547956,0.00811922,64494.0,64492.0,0.217256]
[1721263548996,0.00011922,64494.0,64492.0,0.217256]
[1721263549160,0.00411922,64494.0,64492.0,0.217256]
[1721263549361,0.00811922,64494.0,64492.0,0.0622]
[1721263551801,0.00811922,64494.0,64492.0,0.217257]
[1721263552022,0.00811922,64494.0,64492.0,0.0622]
[1721263552023,0.00011922,64494.0,64492.0,0.0622]
[1721263552460,0.00411922,64494.0,64492.0,0.217257]
[1721263552804,0.00811922,64494.0,64493.0,0.155055]
[1721263553202,0.00411922,64494.0,64492.0,0.0622]
[1721263553405,0.00011922,64494.0,64492.0,0.217257]
[1721263553618,0.00511922,64494.0,64493.0,0.155055]
[1721263553818,0.00311922,64494.0,64493.0,0.155055]
[1721263554461,0.00311922,64494.0,64493.0,0.232655]
[1721263555016,0.00011922,64494.0,64493.0,0.232655]
[1721263555438,0.00511922,64494.0,64493.0,0.232655]
[1721263555675,0.00311922,64494.0,64493.0,0.232655]
[1721263555851,0.00011922,64494.0,64493.0,0.232655]
[1721263556035,0.00111922,64494.0,64493.0,0.232655]
[1721263556241,0.00311922,64494.0,64493.0,0.232655]
[1721263557691,0.00311922,64494.0,64493.0,1.46344556]
[1721263557893,0.00311922,64494.0,64493.0,1.58909861]
[1721263558710,0.00211922,64494.0,64493.0,1.51192382]
[1721263558916,0.00011922,64494.0,64493.0,1.51192382]
[1721263559112,0.00311922,64494.0,64493.0,1.51192382]
[1721263559468,0.00211922,64494.0,64493.0,1.51192382]
[1721263559688,0.00011922,64494.0,64493.0,1.51192382]
[1721263559895,0.00111922,64494.0,64493.0,1.51690571]
[1721263560068,0.00111922,64494.0,64493.0,1.51290571]
[1721263560477,0.00211922,64494.0,64493.0,1.51790571]
[1721263560908,0.00211922,64494.0,64493.0,0.27813597]
[1721263561107,0.00211922,64494.0,64493.0,0.0718]
[1721263563594,0.00211922,64494.0,64493.0,0.006]
[1721263563595,0.46727822,64494.0,64493.0,0.006]
[1721263563818,0.77738422,64494.0,64493.0,0.006]
[1721263565186,0.77638422,64494.0,64493.0,0.005]
[1721263565559,0.77538422,64494.0,64493.0,0.001]
[1721263565882,0.77538422,64494.0,64493.0,0.003]
[1721263567224,0.00011922,64494.0,64493.0,0.003]
[1721263567450,0.00011922,64494.0,64493.0,0.223755]
[1721263567648,0.00011922,64494.0,64493.0,0.843977]
[1721263567853,0.00011922,64494.0,64493.0,1.51362615]
[1721263568295,0.00011922,64494.0,64493.0,1.51360743]
[1721263568707,0.20431769,64509.0,64504.0,0.155026]
[1721263568901,0.20431769,64509.0,64505.0,0.607679]
[1721263568902,0.04930069,64509.0,64505.0,0.607679]
[1721263569108,0.47138871,64514.0,64505.0,1.51088938]
[1721263569109,0.00834,64514.0,64505.0,1.51088938]
[1721263569314,0.00834,64514.0,64513.0,0.465022]
[1721263570441,0.00834,64514.0,64505.0,0.29698174]
[1721263570700,0.15501,64512.0,64507.0,0.15502]
[1721263570823,0.163345,64514.0,64509.0,0.155016]
[1721263571278,0.00834,64514.0,64507.0,0.46506]
[1721263571489,0.163346,64514.0,64508.0,0.155017]
[1721263571891,0.007,64512.0,64506.0,0.155023]
[1721263572125,0.155012,64511.0,64506.0,0.155023]
[1721263572352,0.007,64512.0,64507.0,0.155021]
[1721263572539,0.00834,64514.0,64493.0,0.4668]
[1721263572540,0.155028,64505.0,64500.0,0.0611]
[1721263572749,0.155024,64506.0,64501.0,0.002794]
[1721263572956,0.155025,64506.0,64501.0,0.002794]
[1721263573158,0.155025,64506.0,64501.0,0.15783]
[1721263573299,0.310049,64506.0,64501.0,0.002794]
[1721263573504,0.310049,64506.0,64497.0,0.310091]
[1721263573505,0.155035,64502.0,64497.0,0.155045]
[1721263573780,0.155035,64502.0,64497.0,0.30942674]
[1721263574077,0.155035,64502.0,64498.0,0.155043]
[1721263574277,0.155035,64502.0,64500.0,0.002]
[1721263574508,0.155031,64503.0,64500.0,0.003]
[1721263574831,0.465108,64501.0,64500.0,0.003]
[1721263575231,1.96410574,64501.0,64500.0,0.003]
[1721263575441,2.10060574,64501.0,64500.0,0.002]
[1721263575636,0.155072,64486.0,64485.0,0.002794]
[1721263575844,0.155082,64482.0,64478.0,0.0608]
[1721263576049,0.155085,64481.0,64478.0,0.0608]
[1721263576457,0.155081,64483.0,64478.0,0.0608]
[1721263576658,0.155081,64483.0,64478.0,0.215891]
[1721263577107,0.389344,64487.0,64478.0,0.002794]
[1721263577305,0.155089,64479.0,64477.0,0.000913]
[1721263577709,0.465274,64478.0,64477.0,0.000913]
[1721263579035,0.0642,64485.0,64477.0,0.000913]
[1721263579333,0.155088,64480.0,64478.0,0.001]
[1721263579510,0.155089,64479.0,64477.0,0.000913]
[1721263579716,0.310141,64487.0,64479.0,0.0622]
[1721263579970,0.155083,64482.0,64479.0,0.0622]
[1721263580150,0.15508,64483.0,64479.0,0.0622]
[1721263580361,0.008,64485.0,64481.0,0.155082]
[1721263580580,0.008,64485.0,64483.0,0.155078]
[1721263580732,0.155073,64486.0,64481.0,0.155083]
[1721263580932,0.008,64485.0,64483.0,0.155078]
[1721263581159,0.008,64485.0,64484.0,0.465231]
[1721263581319,0.04970943,64491.0,64489.0,0.155064]
[1721263581515,0.155884,64494.0,64489.0,0.155064]
[1721263581822,0.00083,64494.0,64487.0,0.155068]
[1721263582061,0.310111,64493.0,64487.0,0.155068]
[1721263582646,0.310111,64493.0,64489.0,0.001]
[1721263583048,0.310111,64493.0,64487.0,0.155068]
[1721263583255,0.310111,64493.0,64487.0,0.156068]
[1721263583448,0.324111,64493.0,64487.0,0.156068]
[1721263583915,0.324111,64493.0,64487.0,0.155068]
[1721263583916,0.15506,64491.0,64487.0,0.155068]
[1721263584465,0.155056,64493.0,64488.0,0.155067]
[1721263584667,0.155058,64492.0,64489.0,0.002794]
[1721263584872,0.155058,64492.0,64486.0,0.465213]
[1721263585070,0.155058,64492.0,64489.0,0.001]
[1721263585271,0.014,64491.0,64489.0,0.001]
[1721263585594,0.014,64491.0,64487.0,0.155069]
[1721263585797,0.16906,64491.0,64488.0,0.001]
[1721263586176,0.15506,64491.0,64484.0,0.310154]
[1721263586373,0.014,64492.0,64489.0,0.001]
[1721263586575,0.155062,64490.0,64489.0,0.001]
[1721263586880,0.155062,64490.0,64486.0,0.155071]
[1721263587102,0.155062,64490.0,64488.0,0.001]
[1721263588385,0.155062,64490.0,64485.0,0.155074]
[1721263588793,0.183062,64490.0,64489.0,0.001]
[1721263588994,0.183062,64490.0,64485.0,0.155074]
[1721263589131,0.169062,64490.0,64485.0,0.155074]
[1721263589475,0.197062,64490.0,64488.0,0.001]
[1721263589698,0.169062,64490.0,64485.0,0.155074]
[1721263589822,0.183062,64490.0,64485.0,0.156074]
[1721263590189,0.169062,64490.0,64485.0,0.155074]
[1721263591173,0.155074,64486.0,64481.0,0.155084]
[1721263591578,0.310139,64488.0,64479.0,0.529]
[1721263591899,0.155077,64485.0,64480.0,0.15788]
[1721263592102,0.155077,64485.0,64480.0,0.155086]
[1721263592305,0.155077,64484.0,64479.0,0.529]
[1721263592618,0.467219,64486.0,64480.0,0.155086]
[1721263594007,0.155075,64485.0,64480.0,0.155086]
[1721263595123,0.155796,64485.0,64480.0,0.155086]
[1721263595827,0.156796,64485.0,64480.0,0.155086]
[1721263597832,0.156796,64485.0,64480.0,0.155046]
[1721263598062,0.156796,64485.0,64480.0,0.155006]
[1721263598297,0.156796,64485.0,64480.0,0.154926]
[1721263598517,0.156796,64485.0,64480.0,0.154846]
[1721263598721,0.156796,64485.0,64480.0,0.154806]
[1721263600636,0.156796,64485.0,64481.0,0.155084]
[1721263600846,0.002,64485.0,64481.0,0.155084]
[1721263600972,0.157075,64485.0,64479.0,0.527464]
[1721263601389,0.156075,64485.0,64480.0,0.155086]
[1721263601578,0.155075,64485.0,64480.0,0.155086]
[1721263601781,0.156075,64485.0,64480.0,0.155086]
[1721263601986,0.157075,64485.0,64480.0,0.155086]
[1721263602532,0.155075,64485.0,64480.0,0.155086]
[1721263602776,0.156075,64485.0,64480.0,0.155086]
[1721263603515,0.156075,64485.0,64481.0,0.155084]
[1721263603878,0.157075,64485.0,64481.0,0.155084]
[1721263604313,0.155075,64485.0,64481.0,0.155084]
[1721263604712,0.156075,64485.0,64481.0,0.155084]
[1721263605209,0.156075,64485.0,64482.0,0.12877544]
[1721263605407,0.157075,64485.0,64481.0,0.155084]
[1721263605616,0.15509,64479.0,64476.0,0.0656]
[1721263605812,0.002,64485.0,64476.0,0.0656]
[1721263605813,0.310161,64483.0,64476.0,0.0656]
[1721263606011,0.002,64485.0,64479.0,0.310177]
[1721263606167,0.15508,64483.0,64480.0,0.12877888]
[1721263606376,0.15508,64483.0,64478.0,0.15509]
[1721263606580,0.310157,64484.0,64479.0,0.002794]
[1721263606780,0.15508,64483.0,64478.0,0.002794]
[1721263606981,0.155082,64482.0,64478.0,0.002794]
[1721263607255,0.155073,64486.0,64481.0,0.155083]
[1721263607653,0.155075,64485.0,64481.0,0.155083]
[1721263607833,0.155078,64484.0,64480.0,0.155086]
[1721263608132,0.155078,64484.0,64478.0,0.310181]
[1721263608133,0.155078,64484.0,64479.0,0.155088]
[1721263608741,0.155081,64483.0,64480.0,0.002794]
[1721263608984,0.155081,64483.0,64478.0,0.157884]
[1721263609165,0.155081,64483.0,64477.0,0.000913]
[1721263609166,0.155081,64483.0,64479.0,0.28387115]
[1721263609319,0.155081,64483.0,64480.0,0.12878215]
[1721263609514,0.155077,64484.0,64480.0,0.155086]
[1721263609718,0.155077,64484.0,64480.0,0.156086]
[1721263610091,0.15508,64483.0,64480.0,0.001]
[1721263610294,0.155082,64482.0,64480.0,0.001]
[1721263610687,0.310156,64484.0,64480.0,0.001]
[1721263611394,0.310156,64484.0,64479.0,0.155089]
[1721263611606,0.15508,64483.0,64480.0,0.12878215]
[1721263611815,0.15508,64483.0,64479.0,0.155089]
[1721263612022,0.15508,64483.0,64480.0,0.12878215]
[1721263612191,0.15508,64483.0,64479.0,0.157089]
[1721263612192,0.15508,64483.0,64479.0,0.155089]
[1721263612369,0.15508,64483.0,64480.0,0.12878215]
[1721263612571,0.15508,64483.0,64479.0,0.155089]
[1721263612800,0.005,64484.0,64480.0,0.12878215]
[1721263612959,0.005,64484.0,64479.0,0.310177]
[1721263612960,0.005,64484.0,64482.0,0.15508]
[1721263613168,0.003,64483.0,64482.0,0.15508]
[1721263613378,0.003,64483.0,64482.0,0.59402193]
[1721263613379,0.006,64483.0,64482.0,0.59402193]
[1721263613580,0.003,64483.0,64482.0,0.98718593]
[1721263613869,0.006,64483.0,64482.0,1.04898593]
[1721263614063,0.003,64483.0,64482.0,1.51353167]
[1721263615021,0.006,64483.0,64482.0,1.51351802]
[1721263615220,0.003,64483.0,64482.0,1.51351802]
[1721263615638,0.003,64483.0,64482.0,1.51551802]
[1721263616260,0.00083,64485.0,64484.0,0.775385]
[1721263616588,0.00083,64485.0,64484.0,1.05853102]
[1721263616911,0.00083,64485.0,64484.0,1.36868502]
[1721263618102,0.00183,64485.0,64484.0,1.36868499]
[1721263619286,0.00283,64485.0,64484.0,1.50928499]
[1721263619494,0.00283,64485.0,64484.0,1.91943899]
[1721263619694,0.00283,64485.0,64484.0,2.03844386]
[1721263619893,0.00283,64485.0,64484.0,2.81650477]
[1721263620128,0.00283,64485.0,64484.0,2.9315129]
[1721263620472,0.00183,64485.0,64484.0,2.5713589]
[1721263620651,0.00083,64485.0,64484.0,2.5713589]
[1721263620885,0.00083,64485.0,64484.0,2.5742995]
[1721263621003,0.00083,64485.0,64484.0,2.5782995]
[1721263621205,0.00083,64485.0,64484.0,2.5752995]
[1721263621423,0.00083,64485.0,64484.0,2.59202158]
[1721263621629,0.00083,64485.0,64484.0,2.54134833]
[1721263621866,0.00083,64485.0,64484.0,2.54134663]
[1721263622270,0.00083,64485.0,64484.0,2.43619188]
[1721263622670,0.00283,64485.0,64484.0,2.45398588]
[1721263622870,0.00283,64485.0,64484.0,2.40119188]
[1721263623073,0.00183,64485.0,64484.0,2.44198588]
[1721263623279,0.00183,64485.0,64484.0,2.67219125]
[1721263623280,0.00283,64485.0,64484.0,2.67219125]
[1721263623479,0.00283,64485.0,64484.0,2.76411075]
[1721263623701,0.00183,64485.0,64484.0,2.76111075]
[1721263623906,0.00183,64485.0,64484.0,2.44816286]
[1721263624073,0.00283,64485.0,64484.0,2.40395686]
[1721263624315,0.00283,64485.0,64484.0,1.65532494]
[1721263628427,0.002551,64485.0,64484.0,1.65532494]
[1721263628628,0.002551,64485.0,64484.0,1.62425494]
[1721263629715,0.002551,64485.0,64484.0,1.62427171]
[1721263630116,0.002551,64485.0,64484.0,1.49552074]
[1721263630377,0.002551,64485.0,64484.0,1.62427171]
[1721263637838,0.00183859,64485.0,64484.0,1.62427171]
[1721263638062,0.08053859,64485.0,64484.0,0.14375097]
[1721263638247,0.54576159,64485.0,64484.0,0.015]
[1721263638833,0.54476159,64485.0,64484.0,0.012]
[1721263639234,0.155079,64483.0,64479.0,0.003707]
[1721263639453,0.155079,64483.0,64479.0,0.15529474]
[1721263640116,0.465259,64480.0,64479.0,0.000913]
[1721263640631,0.465259,64480.0,64479.0,0.010913]
[1721263641890,0.155086,64480.0,64479.0,0.013913]
[1721263642128,0.465259,64480.0,64479.0,0.003913]
[1721263642333,0.465259,64480.0,64479.0,0.000913]
[1721263642540,0.466259,64480.0,64479.0,0.011913]
[1721263642946,0.530659,64480.0,64479.0,0.014913]
[1721263643193,0.605759,64480.0,64479.0,0.014913]
[1721263645087,0.604759,64480.0,64479.0,0.003913]
[1721263645515,0.606759,64480.0,64479.0,0.000913]
[1721263645938,0.606759,64480.0,64479.0,0.001913]
[1721263646404,1.227105,64480.0,64479.0,0.001913]
[1721263646612,0.916932,64480.0,64479.0,0.000913]
[1721263646946,0.919932,64480.0,64479.0,0.000913]
[1721263648339,0.916932,64480.0,64479.0,0.000913]
[1721263648752,0.919932,64480.0,64479.0,0.000913]
[1721263648951,0.916932,64480.0,64479.0,0.000913]
[1721263649290,0.919932,64480.0,64479.0,0.000913]
[1721263651336,1.812278,64480.0,64479.0,0.000913]
[1721263652095,1.806278,64480.0,64479.0,0.000913]
[1721263652543,1.812278,64480.0,64479.0,0.000913]
[1721263652855,1.759278,64480.0,64479.0,0.000913]
[1721263653016,1.811278,64480.0,64479.0,0.001913]
[1721263653356,1.816278,64480.0,64479.0,0.001913]
[1721263661958,1.839278,64480.0,64479.0,0.001913]
[1721263662766,1.98865974,64480.0,64479.0,0.001913]
[1721263662970,2.6153095,64480.0,64479.0,0.000913]
[1721263663178,2.6293095,64480.0,64479.0,0.000913]
[1721263663356,1.587972,64471.0,64470.0,0.4668]
[1721263663578,0.465403,64460.0,64459.0,0.4668]
[1721263663781,0.775672,64460.0,64459.0,0.4668]
[1721263663990,1.085941,64460.0,64459.0,0.4668]
[1721263665206,0.620636,64450.0,64446.0,0.0655]
[1721263665426,0.465483,64449.0,64446.0,0.0655]
[1721263665625,0.775805,64449.0,64446.0,0.0655]
[1721263667119,1.086127,64449.0,64443.0,0.091374]
[1721263667725,1.086127,64449.0,64443.0,0.009174]
[1721263668160,1.086127,64449.0,64448.0,0.0105949]
[1721263668366,1.086127,64449.0,64448.0,0.0085949]
[1721263668790,1.091127,64449.0,64448.0,0.0085949]
[1721263668993,1.171727,64449.0,64448.0,0.0085949]
[1721263669308,1.176727,64449.0,64448.0,0.0085949]
[1721263669712,1.171727,64449.0,64448.0,0.0085949]
[1721263669939,1.166727,64449.0,64448.0,0.0085949]
[1721263670142,1.091127,64449.0,64448.0,0.0085949]
[1721263671341,1.456449,64449.0,64448.0,0.0085949]
[1721263671566,1.538649,64449.0,64448.0,0.0085949]
[1721263671978,1.594949,64449.0,64448.0,0.0085949]
[1721263672267,1.589949,64449.0,64448.0,0.0085949]
[1721263672381,1.563949,64449.0,64448.0,0.0085949]
[1721263672582,1.098127,64449.0,64448.0,0.0085949]
[1721263672986,1.100127,64449.0,64448.0,0.0085949]
[1721263673227,1.114127,64449.0,64448.0,0.0085949]
[1721263673878,1.100127,64449.0,64448.0,0.0085949]
[1721263675094,1.098127,64449.0,64448.0,0.0085949]
[1721263675663,1.097127,64449.0,64448.0,0.0085949]
[1721263675818,1.108127,64449.0,64448.0,0.0085949]
[1721263676018,1.097127,64449.0,64448.0,0.0085949]
[1721263676828,1.108127,64449.0,64448.0,0.0085949]
[1721263677026,1.097127,64449.0,64448.0,0.0085949]
[1721263677679,1.173627,64449.0,64448.0,0.0085949]
[1721263678496,1.184627,64449.0,64448.0,0.0085949]
[1721263678754,1.173627,64449.0,64448.0,0.0085949]
[1721263679745,1.184627,64449.0,64448.0,0.0085949]
[1721263679964,1.494949,64449.0,64448.0,0.0085949]
[1721263680400,1.162627,64449.0,64448.0,0.0085949]
[1721263680855,1.175627,64449.0,64448.0,0.0085949]
[1721263681123,1.225627,64449.0,64448.0,0.0085949]
[1721263681359,1.90069344,64449.0,64448.0,0.0085949]
[1721263681572,1.94243074,64449.0,64448.0,0.0085949]
[1721263681779,1.95643074,64449.0,64448.0,0.0085949]
[1721263681989,2.40920318,64449.0,64448.0,0.008526]
[1721263682184,2.39620318,64449.0,64448.0,0.008526]
[1721263682563,2.38220318,64449.0,64448.0,0.008526]
[1721263682701,2.40920318,64449.0,64448.0,0.008526]
[1721263682901,2.39620318,64449.0,64448.0,0.008526]
[1721263683249,2.04243074,64449.0,64448.0,0.008526]
[1721263683469,2.00643074,64449.0,64448.0,0.008526]
[1721263683828,2.02043074,64449.0,64448.0,0.008526]
[1721263684147,2.04343074,64449.0,64448.0,0.008526]
[1721263684489,2.04373214,64449.0,64448.0,0.008526]
[1721263684713,1.99373214,64449.0,64448.0,0.008526]
[1721263684972,2.02973214,64449.0,64448.0,0.008526]
[1721263685419,2.04373214,64449.0,64448.0,0.008526]
[1721263685644,2.21208171,64449.0,64448.0,0.008526]
[1721263685861,2.19808171,64449.0,64448.0,0.008526]
[1721263686087,2.24053645,64449.0,64448.0,0.008526]
[1721263686298,2.26853645,64449.0,64448.0,0.008526]
[1721263686520,2.24053645,64449.0,64448.0,0.008526]
[1721263686746,2.25453645,64449.0,64448.0,0.008526]
[1721263687159,2.22653645,64449.0,64448.0,0.008526]
[1721263687388,2.24053645,64449.0,64448.0,0.008526]
[1721263687608,2.08618688,64449.0,64448.0,0.008526]
[1721263688465,2.41050888,64449.0,64448.0,0.008526]
[1721263688676,2.39650888,64449.0,64448.0,0.008526]
[1721263689366,2.61850888,64449.0,64448.0,0.008526]
[1721263689764,2.63250888,64449.0,64448.0,0.008526]
[1721263689970,2.56485845,64449.0,64448.0,0.008526]
[1721263690374,0.05,64444.0,64443.0,0.009174]
[1721263690577,2.51103948,64444.0,64443.0,0.009174]
[1721263690754,2.38903948,64444.0,64443.0,0.009174]
[1721263691872,2.40303948,64444.0,64443.0,0.009174]
[1721263692083,2.54832666,64444.0,64443.0,0.009174]
[1721263692410,2.41703948,64444.0,64443.0,0.009174]
[1721263696869,2.04079348,64444.0,64443.0,0.009174]
[1721263697086,1.25666574,64444.0,64443.0,0.009174]
[1721263697331,1.214211,64444.0,64443.0,0.009174]
[1721263697735,1.214211,64444.0,64443.0,0.073874]
[1721263698449,1.25671046,64444.0,64443.0,0.073874]
[1721263698742,1.25671046,64444.0,64443.0,0.073834]
[1721263699555,1.25671046,64444.0,64443.0,0.009134]
[1721263701029,0.94636446,64444.0,64443.0,0.009134]
[1721263701153,0.028,64444.0,64443.0,0.228209]
[1721263701375,0.028,64444.0,64443.0,0.309309]
[1721263701577,0.028,64444.0,64443.0,0.93311441]
[1721263701779,0.028,64444.0,64443.0,1.5236045]
[1721263701991,0.014,64444.0,64443.0,1.5236045]
[1721263702413,0.0003014,64449.0,64448.0,0.920817]
[1721263702615,0.0003014,64449.0,64448.0,1.04967776]
[1721263704044,0.0003014,64449.0,64448.0,1.0496602]
[1721263704246,0.0003014,64449.0,64448.0,0.920817]
[1721263704823,0.0013014,64449.0,64448.0,0.922817]
[1721263705411,0.0023014,64449.0,64448.0,0.924817]
[1721263708069,0.0023014,64449.0,64448.0,1.38952574]
[1721263708273,0.0023014,64449.0,64448.0,1.82868707]
[1721263708483,0.0013014,64449.0,64448.0,1.82668707]
[1721263709153,0.51301085,64469.0,64468.0,0.604946]
[1721263709487,0.155103,64473.0,64468.0,0.604946]
[1721263709711,0.155103,64473.0,64469.0,0.155112]
[1721263709917,0.155109,64471.0,64468.0,0.1396]
[1721263710069,0.155109,64471.0,64469.0,0.002794]
[1721263710273,0.155109,64471.0,64468.0,0.1396]
[1721263711131,0.009,64469.0,64468.0,0.1396]
[1721263711710,0.155105,64473.0,64468.0,0.294715]
[1721263711925,0.009,64469.0,64468.0,0.450829]
[1721263712179,0.009,64469.0,64468.0,0.605944]
[1721263712396,0.009,64469.0,64468.0,1.07055674]
[1721263712836,0.00083,64477.0,64476.0,0.465288]
[1721263713050,0.00083,64477.0,64476.0,0.525488]
[1721263713493,0.00083,64477.0,64476.0,0.215296]
[1721263714956,0.00783,64477.0,64476.0,0.215296]
[1721263715379,0.00783,64477.0,64469.0,0.15438174]
[1721263715380,0.311018,64477.0,64469.0,0.0601]
[1721263717735,0.160098,64476.0,64471.0,0.155108]
[1721263718253,0.161098,64476.0,64471.0,0.155108]
[1721263718456,0.155098,64476.0,64471.0,0.156108]
[1721263718634,0.160098,64476.0,64471.0,0.156108]
[1721263718840,0.166098,64476.0,64471.0,0.156108]
[1721263720828,0.155102,64474.0,64471.0,0.001]
[1721263721380,0.155098,64475.0,64471.0,0.001]
[1721263721589,0.155101,64474.0,64471.0,0.001]
[1721263722488,0.158101,64474.0,64469.0,0.215213]
[1721263722908,0.15511,64470.0,64469.0,0.0601]
[1721263723276,0.155106,64472.0,64469.0,0.0601]
[1721263723443,0.155108,64471.0,64469.0,0.0601]
[1721263724465,0.155107,64472.0,64469.0,0.0601]
[1721263724670,0.155108,64471.0,64469.0,0.0601]
[1721263724869,0.155105,64473.0,64469.0,0.215213]
[1721263725044,0.155106,64472.0,64469.0,0.0601]
[1721263725251,0.003,64474.0,64469.0,0.0601]